fUST/lending_fUST_20250724
["ID","MTS","AMOUNT","RATE_DAILY","PERIOD"]
[374565508,1753357843825,-460.0,0.00019726,2]
[374565509,1753357843835,-460.0,0.00019726,2]
[374565510,1753357843845,-460.0,0.00019726,2]
[374565511,1753357843854,-460.0,0.00019726,2]
[374565512,1753357843863,-460.0,0.00019726,2]
[374565513,1753357843873,-608.45244726,0.00019726,2]
[374565514,1753357843882,-460.0,0.00019726,2]
[374565515,1753357843892,-460.0,0.00019726,2]
[374565516,1753357843902,-716.8,0.00019726,2]
[374565517,1753357843912,-460.0,0.00019726,2]
[374565518,1753357843922,-505.29912107,0.00019822,2]
[374565519,1753357843932,-500.0,0.00019884,2]
[374565520,1753357843941,-5707.8866733,0.000199,2]
[374565521,1753357843952,-500.0,0.00019939,2]
[374565522,1753357843961,-501.57043918,0.00019964,2]
[374565523,1753357843971,-6380.42655909,0.0001999,2]
[374565524,1753357843981,-460.0,0.00019999,2]
[374565525,1753357843990,-613.33,0.00019999,2]
[374565527,1753357844000,-1709.09,0.00019999,2]
[374565528,1753357844010,-1075.55,0.00019999,2]
[374565529,1753357844019,-420.20410918,0.0002,2]
[374565530,1753357844028,-173.7533436,0.0002,2]
[374565531,1753357844038,-151.0,0.0002,2]
[374565532,1753357844047,-151.0,0.0002,2]
[374565533,1753357844056,-776.0,0.0002,2]
[374565534,1753357844066,-567.0,0.0002,2]
[374565535,1753357844076,-151.0,0.0002,2]
[374565536,1753357844087,-151.0,0.0002,2]
[374565537,1753357844097,-500.0,0.0002,2]
[374565538,1753357844107,-151.0,0.0002,2]
[374565539,1753357844118,-460.0,0.0002,2]
[374565540,1753357844129,-460.0,0.0002,2]
[374565541,1753357844139,-503.45,0.0002,2]
[374565542,1753357844148,-460.0,0.0002,2]
[374565543,1753357844158,-460.0,0.0002,2]
[374565544,1753357844167,-460.0,0.0002,2]
[374565545,1753357844179,-460.0,0.0002,2]
[374565546,1753357844190,-460.0,0.0002,2]
[374565547,1753357844202,-460.0,0.0002,2]
[374565548,1753357844212,-460.0,0.0002,2]
[374565549,1753357844222,-460.0,0.0002,2]
[374565550,1753357844233,-471.74103081,0.0002,2]
[374565551,1753357844243,-460.0,0.0002,2]
[374565552,1753357844254,-460.0,0.0002,2]
[374565553,1753357844263,-460.0,0.0002,2]
[374565554,1753357844273,-460.0,0.0002,2]
[374565555,1753357844282,-460.0,0.0002,2]
[374565556,1753357844292,-460.0,0.0002,2]
[374565557,1753357844301,-460.0,0.0002,2]
[374565558,1753357844311,-460.0,0.0002,2]
[374565559,1753357844324,-460.0,0.0002,2]
[374565560,1753357844337,-460.0,0.0002,2]
[374565561,1753357844350,-485.64,0.0002,2]
[374565562,1753357844362,-460.0,0.0002,2]
[374565563,1753357844374,-173.99,0.0002,2]
[374565564,1753357844387,-460.0,0.0002,2]
[374565565,1753357844399,-460.0,0.0002,2]
[374565566,1753357844414,-386.60072505,0.0002,2]
[374565567,1753357844426,-460.0,0.0002,2]
[374565568,1753357844438,-460.0,0.0002,2]
[374565569,1753357844451,-460.0,0.0002,2]
[374565570,1753357844463,-460.0,0.0002,2]
[374565571,1753357844474,-746.69,0.0002,2]
[374565572,1753357844487,-460.0,0.0002,2]
[374565573,1753357844500,-460.0,0.0002,2]
[374565574,1753357844512,-2493.37,0.0002,2]
[374565575,1753357844525,-1833.22,0.0002,2]
[374565576,1753357844536,-460.0,0.0002,2]
[374565577,1753357844548,-619.89,0.0002,2]
[374565578,1753357844560,-718.48,0.0002,2]
[374565579,1753357844571,-460.0,0.0002,2]
[374565580,1753357844582,-460.0,0.0002,2]
[374565581,1753357844593,-460.0,0.0002,2]
[374565582,1753357844605,-460.0,0.0002,2]
[374565583,1753357844618,-460.0,0.0002,2]
[374565584,1753357844630,-537.16,0.0002,2]
[374565585,1753357844642,-460.0,0.0002,2]
[374565586,1753357844654,-460.0,0.0002,2]
[374565587,1753357844668,-460.0,0.0002,2]
[374565588,1753357844680,-924.13,0.0002,2]
[374565589,1753357844692,-460.0,0.0002,2]
[374565590,1753357844703,-672.62,0.0002,2]
[374565591,1753357844715,-460.0,0.0002,2]
[374565592,1753357844727,-460.0,0.0002,2]
[374565593,1753357844739,-460.0,0.0002,2]
[374565594,1753357844750,-1108.42,0.0002,2]
[374565595,1753357844762,-460.0,0.0002,2]
[374565596,1753357844772,-460.0,0.0002,2]
[374565597,1753357844786,-460.0,0.0002,2]
[374565598,1753357844800,-460.0,0.0002,2]
[374565599,1753357844812,-1920.16,0.0002,2]
[374565600,1753357844824,-460.0,0.0002,2]
[374565601,1753357844836,-460.0,0.0002,2]
[374565602,1753357844848,-460.0,0.0002,2]
[374565603,1753357844861,-460.0,0.0002,2]
[374565604,1753357844873,-460.0,0.0002,2]
[374565605,1753357844886,-460.0,0.0002,2]
[374565606,1753357844897,-460.0,0.0002,2]
[374565607,1753357844909,-460.0,0.0002,2]
[374565608,1753357844923,-460.0,0.0002,2]
[374565609,1753357844935,-460.0,0.0002,2]
[374565610,1753357844947,-460.0,0.0002,2]
[374565611,1753357844959,-460.0,0.0002,2]
[374565612,1753357844970,-1353.56,0.0002,2]
[374565613,1753357844982,-1497.33,0.0002,2]
[374565614,1753357844993,-460.0,0.0002,2]
[374565615,1753357845004,-3517.43,0.0002,2]
[374565616,1753357845014,-460.0,0.0002,2]
[374565617,1753357845026,-460.0,0.0002,2]
[374565618,1753357845038,-460.0,0.0002,2]
[374565619,1753357845049,-460.0,0.0002,2]
[374565620,1753357845062,-460.0,0.0002,2]
[374565621,1753357845075,-460.0,0.0002,2]
[374565622,1753357845087,-716.8,0.0002,2]
[374565623,1753357845097,-460.0,0.0002,2]
[374565624,1753357845108,-460.0,0.0002,2]
[374565625,1753357845119,-460.0,0.00020273,2]
[374565626,1753357845129,-414.94840566,0.00020273,2]
[374565627,1753357845139,-503.45,0.00020273,2]
[374565628,1753357845150,-460.0,0.00020273,2]
[374565629,1753357845163,-460.0,0.00020273,2]
[374565630,1753357845175,-460.0,0.00020273,2]
[374565631,1753357845188,-460.0,0.00020273,2]
[374565632,1753357845200,-512.48422645,0.00020273,2]
[374565633,1753357845210,-460.0,0.00020273,2]
[374565634,1753357845221,-460.0,0.00020273,2]
[374565635,1753357845232,-460.0,0.00020273,2]
[374565636,1753357845243,-460.0,0.00020273,2]
[374565637,1753357845254,-460.0,0.00020273,2]
[374565638,1753357845264,-460.0,0.00020273,2]
[374565639,1753357845276,-460.0,0.00020273,2]
[374565640,1753357845288,-460.0,0.00020273,2]
[374565641,1753357845299,-360.0,0.00020273,2]
[374565642,1753357845310,-460.0,0.00020273,2]
[374565643,1753357845320,-460.0,0.00020273,2]
[374565644,1753357845331,-460.0,0.00020273,2]
[374565645,1753357845343,-460.0,0.00020273,2]
[374565646,1753357845354,-485.64,0.00020273,2]
[374565647,1753357845365,-460.0,0.00020273,2]
[374565648,1753357845375,-460.0,0.00020273,2]
[374565649,1753357845387,-460.0,0.00020273,2]
[374565650,1753357845398,-460.0,0.00020273,2]
[374565651,1753357845413,-460.0,0.00020273,2]
[374565652,1753357845423,-460.0,0.00020273,2]
[374565653,1753357845434,-746.69,0.00020273,2]
[374565654,1753357845446,-460.0,0.00020273,2]
[374565655,1753357845458,-460.0,0.00020273,2]
[374565656,1753357845468,-2493.37,0.00020273,2]
[374565657,1753357845481,-1833.22,0.00020273,2]
[374565658,1753357845496,-460.0,0.00020273,2]
[374565659,1753357845508,-718.48,0.00020273,2]
[374565660,1753357845519,-619.89,0.00020273,2]
[374565661,1753357845531,-460.0,0.00020273,2]
[374565662,1753357845542,-236.55727065,0.00020273,2]
[374565663,1753357845554,-460.0,0.00020273,2]
[374565664,1753357845564,-460.0,0.00020273,2]
[374565665,1753357845576,-460.0,0.00020273,2]
[374565666,1753357845588,-537.16,0.00020273,2]
[374565667,1753357845601,-460.0,0.00020273,2]
[374565668,1753357845613,-460.0,0.00020273,2]
[374565669,1753357845623,-209.98085329,0.00020273,2]
[374565670,1753357845634,-460.0,0.00020273,2]
[374565671,1753357845645,-924.13,0.00020273,2]
[374565672,1753357845656,-672.62,0.00020273,2]
[374565673,1753357845667,-460.0,0.00020273,2]
[374565674,1753357845679,-460.0,0.00020273,2]
[374565675,1753357845690,-1108.42,0.00020273,2]
[374565676,1753357845701,-613.33,0.00020273,2]
[374565677,1753357845712,-460.0,0.00020273,2]
[374565678,1753357845723,-460.0,0.00020273,2]
[374565679,1753357845735,-460.0,0.00020273,2]
[374565680,1753357845745,-1920.16,0.00020273,2]
[374565681,1753357845757,-460.0,0.00020273,2]
[374565682,1753357845769,-460.0,0.00020273,2]
[374565683,1753357845781,-460.0,0.00020273,2]
[374565684,1753357845792,-460.0,0.00020273,2]
[374565685,1753357845803,-460.0,0.00020273,2]
[374565686,1753357845814,-460.0,0.00020273,2]
[374565688,1753357845825,-460.0,0.00020273,2]
[374565689,1753357845836,-460.0,0.00020273,2]
[374565690,1753357845847,-1709.09,0.00020273,2]
[374565691,1753357845858,-460.0,0.00020273,2]
[374565692,1753357845870,-1353.56,0.00020273,2]
[374565693,1753357845881,-1497.33,0.00020273,2]
[374565694,1753357845892,-460.0,0.00020273,2]
[374565695,1753357845903,-3517.43,0.00020273,2]
[374565696,1753357845914,-460.0,0.00020273,2]
[374565697,1753357845925,-460.0,0.00020273,2]
[374565698,1753357845935,-460.0,0.00020273,2]
[374565699,1753357845947,-460.0,0.00020273,2]
[374565700,1753357845957,-460.0,0.00020273,2]
[374565701,1753357845968,-460.0,0.00020273,2]
[374565702,1753357845979,-1075.55,0.00020273,2]
[374565703,1753357845991,-716.8,0.00020273,2]
[374565704,1753357846002,-460.0,0.00020273,2]
[374565705,1753357846012,-151.0,0.00020274,2]
[374565706,1753357846024,-151.98645579,0.00020274,2]
[374565707,1753357846035,-776.0,0.00020274,2]
[374565708,1753357846047,-567.0,0.00020274,2]
[374565709,1753357846059,-179.3227898,0.00020274,2]
[374565710,1753357846071,-184.12379564,0.00020274,2]
[374565711,1753357846081,-497.23984541,0.00020274,2]
[374565713,1753357846092,-151.0,0.00020274,2]
[374565714,1753357846103,-562.71561963,0.00020419,2]
[374565715,1753357846114,-460.0,0.00020547,2]
[374565716,1753357846124,-503.45,0.00020547,2]
[374565717,1753357846135,-521.62,0.00020547,2]
[374565718,1753357846146,-460.0,0.00020547,2]
[374565719,1753357846159,-460.0,0.00020547,2]
[374565720,1753357846170,-460.0,0.00020547,2]
[374565721,1753357846181,-460.0,0.00020547,2]
[374565722,1753357846193,-460.0,0.00020547,2]
[374565723,1753357846206,-460.0,0.00020547,2]
[374565724,1753357846216,-460.0,0.00020547,2]
[374565725,1753357846227,-460.0,0.00020547,2]
[374565726,1753357846237,-460.0,0.00020547,2]
[374565727,1753357846249,-531.73,0.00020547,2]
[374565728,1753357846259,-460.0,0.00020547,2]
[374565729,1753357846443,-460.0,0.00020547,2]
[374565730,1753357846464,-460.0,0.00020547,2]
[374565731,1753357846476,-460.0,0.00020547,2]
[374565732,1753357846486,-485.64,0.00020547,2]
[374565733,1753357846498,-460.0,0.00020547,2]
[374565734,1753357846508,-460.0,0.00020547,2]
[374565735,1753357846519,-460.0,0.00020547,2]
[374565736,1753357846528,-460.0,0.00020547,2]
[374565737,1753357846541,-460.0,0.00020547,2]
[374565738,1753357846551,-746.69,0.00020547,2]
[374565739,1753357846560,-460.0,0.00020547,2]
[374565740,1753357846571,-460.0,0.00020547,2]
[374565741,1753357846582,-2493.37,0.00020547,2]
[374565742,1753357846591,-1833.22,0.00020547,2]
[374565743,1753357846602,-718.48,0.00020547,2]
[374565745,1753357846611,-619.89,0.00020547,2]
[374565746,1753357846622,-460.0,0.00020547,2]
[374565747,1753357846631,-460.0,0.00020547,2]
[374565748,1753357846641,-460.0,0.00020547,2]
[374565749,1753357846651,-460.0,0.00020547,2]
[374565750,1753357846660,-537.16,0.00020547,2]
[374565751,1753357846669,-460.0,0.00020547,2]
[374565752,1753357846679,-460.0,0.00020547,2]
[374565753,1753357846688,-460.0,0.00020547,2]
[374565754,1753357846699,-924.13,0.00020547,2]
[374565755,1753357846709,-672.62,0.00020547,2]
[374565756,1753357846719,-460.0,0.00020547,2]
[374565757,1753357846728,-460.0,0.00020547,2]
[374565758,1753357846738,-1108.42,0.00020547,2]
[374565759,1753357846748,-613.33,0.00020547,2]
[374565760,1753357846758,-460.0,0.00020547,2]
[374565761,1753357846767,-460.0,0.00020547,2]
[374565762,1753357846777,-460.0,0.00020547,2]
[374565763,1753357846786,-1920.16,0.00020547,2]
[374565764,1753357846797,-460.0,0.00020547,2]
[374565765,1753357846806,-460.0,0.00020547,2]
[374565766,1753357846815,-460.0,0.00020547,2]
[374565767,1753357846825,-460.0,0.00020547,2]
[374565768,1753357846835,-460.0,0.00020547,2]
[374565769,1753357846845,-460.0,0.00020547,2]
[374565770,1753357846855,-460.0,0.00020547,2]
[374565771,1753357846865,-1709.09,0.00020547,2]
[374565772,1753357846875,-460.0,0.00020547,2]
[374565773,1753357846885,-1353.56,0.00020547,2]
[374565774,1753357846896,-1497.33,0.00020547,2]
[374565775,1753357846906,-460.0,0.00020547,2]
[374565776,1753357846915,-3517.43,0.00020547,2]
[374565777,1753357846924,-460.0,0.00020547,2]
[374565778,1753357846934,-460.0,0.00020547,2]
[374565779,1753357846943,-460.0,0.00020547,2]
[374565780,1753357846954,-460.0,0.00020547,2]
[374565781,1753357846964,-460.0,0.00020547,2]
[374565782,1753357846974,-460.0,0.00020547,2]
[374565783,1753357846984,-1075.55,0.00020547,2]
[374565784,1753357846994,-716.8,0.00020547,2]
[374565785,1753357847003,-460.0,0.00020547,2]
[374565786,1753357847013,-151.0,0.00020548,2]
[374565787,1753357847024,-776.0,0.00020548,2]
[374565788,1753357847034,-567.0,0.00020548,2]
[374565789,1753357847043,-151.0,0.00020548,2]
[374565790,1753357847053,-12624.810388,0.0002066,2]
[374565791,1753357847063,-160.0,0.0002066,2]
[374565792,1753357847072,-231.16387093,0.0002066,2]
[374565793,1753357847082,-840.23756827,0.0002066,2]
[374565794,1753357847092,-160.0,0.0002066,2]
[374565795,1753357847101,-214.7213231,0.0002066,2]
[374565796,1753357847111,-476.79463412,0.0002066,2]
[374565797,1753357847122,-160.0,0.0002066,2]
[374565798,1753357847131,-160.0,0.0002066,2]
[374565799,1753357847141,-160.0,0.0002066,2]
[374565800,1753357847150,-526.24749348,0.0002066,2]
[374565801,1753357847160,-160.0,0.0002066,2]
[374565802,1753357847170,-215.88777038,0.0002066,2]
[374565803,1753357847179,-503.45,0.00020821,2]
[374565804,1753357847189,-460.0,0.00020821,2]
[374565805,1753357847199,-460.0,0.00020821,2]
[374565806,1753357847208,-558.52907695,0.00020821,2]
[374565807,1753357847217,-460.0,0.00020821,2]
[374565808,1753357847227,-460.0,0.00020821,2]
[374565809,1753357847236,-460.0,0.00020821,2]
[374565810,1753357847245,-460.0,0.00020821,2]
[374565811,1753357847254,-460.0,0.00020821,2]
[374565812,1753357847264,-460.0,0.00020821,2]
[374565813,1753357847273,-533.0,0.00020821,2]
[374565814,1753357847283,-460.0,0.00020821,2]
[374565815,1753357847292,-460.0,0.00020821,2]
[374565816,1753357847302,-485.64,0.00020821,2]
[374565817,1753357847311,-498.32,0.00020821,2]
[374565818,1753357847321,-460.0,0.00020821,2]
[374565819,1753357847330,-460.0,0.00020821,2]
[374565820,1753357847339,-460.0,0.00020821,2]
[374565821,1753357847349,-460.0,0.00020821,2]
[374565822,1753357847358,-746.69,0.00020821,2]
[374565823,1753357847368,-460.0,0.00020821,2]
[374565824,1753357847378,-460.0,0.00020821,2]
[374565825,1753357847387,-2493.37,0.00020821,2]
[374565826,1753357847397,-1833.22,0.00020821,2]
[374565827,1753357847408,-718.48,0.00020821,2]
[374565828,1753357847419,-619.89,0.00020821,2]
[374565829,1753357847429,-460.0,0.00020821,2]
[374565830,1753357847438,-460.0,0.00020821,2]
[374565831,1753357847448,-460.0,0.00020821,2]
[374565832,1753357847458,-460.0,0.00020821,2]
[374565833,1753357847467,-537.16,0.00020821,2]
[374565834,1753357847477,-460.0,0.00020821,2]
[374565835,1753357847488,-454.31647254,0.00020821,2]
[374565836,1753357847498,-924.13,0.00020821,2]
[374565837,1753357847507,-460.0,0.00020821,2]
[374565838,1753357847517,-672.62,0.00020821,2]
[374565839,1753357847528,-460.0,0.00020821,2]
[374565840,1753357847538,-1108.42,0.00020821,2]
[374565841,1753357847548,-613.33,0.00020821,2]
[374565842,1753357847558,-460.0,0.00020821,2]
[374565843,1753357847568,-376.40490601,0.00020821,2]
[374565844,1753357847577,-460.0,0.00020821,2]
[374565845,1753357847587,-1920.16,0.00020821,2]
[374565846,1753357847595,-460.0,0.00020821,2]
[374565847,1753357847604,-460.0,0.00020821,2]
[374565848,1753357847614,-460.0,0.00020821,2]
[374565849,1753357847623,-460.0,0.00020821,2]
[374565850,1753357847633,-460.0,0.00020821,2]
[374565851,1753357847642,-460.0,0.00020821,2]
[374565852,1753357847652,-460.0,0.00020821,2]
[374565853,1753357847661,-1709.09,0.00020821,2]
[374565854,1753357847671,-460.0,0.00020821,2]
[374565855,1753357847681,-1353.56,0.00020821,2]
[374565856,1753357847691,-1497.33,0.00020821,2]
[374565857,1753357847700,-460.0,0.00020821,2]
[374565858,1753357847709,-3517.43,0.00020821,2]
[374565859,1753357847719,-460.0,0.00020821,2]
[374565860,1753357847728,-460.0,0.00020821,2]
[374565861,1753357847738,-460.0,0.00020821,2]
[374565862,1753357847747,-269.56,0.00020821,2]
[374565863,1753357847756,-460.0,0.00020821,2]
[374565864,1753357847765,-460.0,0.00020821,2]
[374565865,1753357847775,-1075.55,0.00020821,2]
[374565866,1753357847784,-716.8,0.00020821,2]
[374565867,1753357847793,-460.0,0.00020821,2]
[374565868,1753357847803,-776.0,0.00020822,2]
[374565869,1753357847812,-567.0,0.00020822,2]
[374565870,1753357847821,-201.96851347,0.00020822,2]
[374565871,1753357847830,-160.0,0.00020835,2]
[374565872,1753357847839,-917.323,0.00020874,2]
[374565873,1753357847849,-178.70934786,0.00020874,2]
[374565874,1753357847858,-420.0,0.00020899,2]
[374565875,1753357847870,-1548.42478727,0.000209,4]
[374565876,1753357847880,-857.0257297,0.00020946,2]
[374565877,1753357847890,-500.0,0.00021064,2]
[374565878,1753357847900,-1548.42478719,0.00021072,4]
[374565879,1753357847910,-503.45,0.00021095,2]
[374565880,1753357847920,-460.0,0.00021095,2]
[374565881,1753357847930,-460.0,0.00021095,2]
[374565882,1753357847940,-555.8,0.00021095,2]
[374565883,1753357847949,-460.0,0.00021095,2]
[374565884,1753357847959,-460.0,0.00021095,2]
[374565885,1753357847968,-460.0,0.00021095,2]
[374565886,1753357847977,-460.0,0.00021095,2]
[374565887,1753357847987,-460.0,0.00021095,2]
[374565888,1753357847996,-460.0,0.00021095,2]
[374565889,1753357848006,-460.0,0.00021095,2]
[374565890,1753357848015,-485.64,0.00021095,2]
[374565891,1753357848024,-460.0,0.00021095,2]
[374565892,1753357848034,-187.05,0.00021095,2]
[374565893,1753357848043,-460.0,0.00021095,2]
[374565894,1753357848053,-460.0,0.00021095,2]
[374565895,1753357848063,-746.69,0.00021095,2]
[374565896,1753357848073,-460.0,0.00021095,2]
[374565897,1753357848083,-460.0,0.00021095,2]
[374565898,1753357848092,-2493.37,0.00021095,2]
[374565899,1753357848102,-1833.22,0.00021095,2]
[374565900,1753357848114,-718.48,0.00021095,2]
[374565901,1753357848124,-619.89,0.00021095,2]
[374565902,1753357848134,-460.0,0.00021095,2]
[374565903,1753357848144,-460.0,0.00021095,2]
[374565904,1753357848154,-460.0,0.00021095,2]
[374565905,1753357848164,-460.0,0.00021095,2]
[374565906,1753357848173,-537.16,0.00021095,2]
[374565907,1753357848183,-460.0,0.00021095,2]
[374565908,1753357848193,-924.13,0.00021095,2]
[374565909,1753357848203,-460.0,0.00021095,2]
[374565910,1753357848213,-672.62,0.00021095,2]
[374565911,1753357848223,-460.0,0.00021095,2]
[374565912,1753357848232,-1108.42,0.00021095,2]
[374565913,1753357848242,-613.33,0.00021095,2]
[374565914,1753357848253,-460.0,0.00021095,2]
[374565915,1753357848263,-460.0,0.00021095,2]
[374565916,1753357848273,-1920.16,0.00021095,2]
[374565917,1753357848282,-460.0,0.00021095,2]
[374565918,1753357848291,-460.0,0.00021095,2]
[374565919,1753357848301,-460.0,0.00021095,2]
[374565920,1753357848310,-460.0,0.00021095,2]
[374565921,1753357848320,-460.0,0.00021095,2]
[374565922,1753357848330,-460.0,0.00021095,2]
[374565923,1753357848340,-1709.09,0.00021095,2]
[374565924,1753357848351,-1353.56,0.00021095,2]
[374565925,1753357848361,-1497.33,0.00021095,2]
[374565926,1753357848372,-3517.43,0.00021095,2]
[374565927,1753357848383,-460.0,0.00021095,2]
[374565928,1753357848393,-460.0,0.00021095,2]
[374565929,1753357848405,-460.0,0.00021095,2]
[374565930,1753357848418,-460.0,0.00021095,2]
[374565931,1753357848429,-460.0,0.00021095,2]
[374565932,1753357848439,-1075.55,0.00021095,2]
[374565933,1753357848450,-716.8,0.00021095,2]
[374565934,1753357848460,-460.0,0.00021095,2]
[374565935,1753357848470,-776.0,0.00021096,2]
[374565936,1753357848481,-567.0,0.00021096,2]
[374565937,1753357848491,-224.6,0.00021125,4]
[374565938,1753357848502,-562.71561963,0.00021213,2]
[374565939,1753357848512,-1548.42478719,0.00021245,4]
[374565940,1753357848522,-503.45,0.00021369,2]
[374565941,1753357848531,-460.0,0.00021369,2]
[374565942,1753357848541,-225.85,0.00021369,2]
[374565943,1753357848551,-460.0,0.00021369,2]
[374565944,1753357848561,-255.520942,0.00021369,2]
[374565945,1753357848572,-460.0,0.00021369,2]
[374565946,1753357848582,-460.0,0.00021369,2]
[374565947,1753357848592,-460.0,0.00021369,2]
[374565948,1753357848602,-460.0,0.00021369,2]
[374565949,1753357848612,-485.64,0.00021369,2]
[374565950,1753357848622,-460.0,0.00021369,2]
[374565951,1753357848632,-460.0,0.00021369,2]
[374565952,1753357848642,-553.41,0.00021369,2]
[374565953,1753357848652,-746.69,0.00021369,2]
[374565954,1753357848662,-460.0,0.00021369,2]
[374565955,1753357848672,-460.0,0.00021369,2]
[374565956,1753357848682,-2493.37,0.00021369,2]
[374565957,1753357848692,-1833.22,0.00021369,2]
[374565958,1753357848701,-718.48,0.00021369,2]
[374565959,1753357848711,-619.89,0.00021369,2]
[374565960,1753357848722,-460.0,0.00021369,2]
[374565961,1753357848732,-460.0,0.00021369,2]
[374565962,1753357848742,-460.0,0.00021369,2]
[374565963,1753357848752,-460.0,0.00021369,2]
[374565964,1753357848762,-537.16,0.00021369,2]
[374565965,1753357848773,-249.18,0.00021369,2]
[374565966,1753357848783,-924.13,0.00021369,2]
[374565967,1753357848794,-460.0,0.00021369,2]
[374565968,1753357848804,-672.62,0.00021369,2]
[374565969,1753357848816,-460.0,0.00021369,2]
[374565970,1753357848826,-1108.42,0.00021369,2]
[374565971,1753357848836,-613.33,0.00021369,2]
[374565972,1753357848846,-460.0,0.00021369,2]
[374565973,1753357848857,-460.0,0.00021369,2]
[374565974,1753357848869,-1920.16,0.00021369,2]
[374565975,1753357848879,-460.0,0.00021369,2]
[374565976,1753357848890,-460.0,0.00021369,2]
[374565977,1753357848900,-460.0,0.00021369,2]
[374565978,1753357848911,-460.0,0.00021369,2]
[374565979,1753357848921,-460.0,0.00021369,2]
[374565980,1753357848931,-460.0,0.00021369,2]
[374565981,1753357848942,-1709.09,0.00021369,2]
[374565982,1753357848952,-1353.56,0.00021369,2]
[374565983,1753357848961,-1497.33,0.00021369,2]
[374565984,1753357848970,-3517.43,0.00021369,2]
[374565985,1753357848980,-460.0,0.00021369,2]
[374565986,1753357848991,-460.0,0.00021369,2]
[374565987,1753357849000,-460.0,0.00021369,2]
[374565988,1753357849010,-460.0,0.00021369,2]
[374565989,1753357849019,-460.0,0.00021369,2]
[374565990,1753357849029,-1075.55,0.00021369,2]
[374565991,1753357849039,-716.8,0.00021369,2]
[374565992,1753357849048,-460.0,0.00021369,2]
[374565993,1753357849058,-776.0,0.0002137,2]
[374565994,1753357849068,-567.0,0.0002137,2]
[374565995,1753357849078,-260.0,0.00021383,2]
[374565996,1753357849088,-3025.54,0.00021389,3]
[374565997,1753357849099,-1548.42478719,0.00021417,5]
[374565998,1753357849109,-4000.0,0.00021464,3]
[374565999,1753357849120,-224.6,0.00021469,4]
[374566000,1753357849131,-5000.0,0.00021526,3]
[374566001,1753357849142,-12624.810388,0.00021526,3]
[374566002,1753357849152,-160.0,0.00021526,3]
[374566003,1753357849162,-1548.42478719,0.0002159,5]
[374566004,1753357849172,-4000.0,0.00021621,3]
[374566005,1753357849182,-503.45,0.00021643,2]
[374566006,1753357849192,-460.0,0.00021643,2]
[374566007,1753357849202,-460.0,0.00021643,2]
[374566008,1753357849211,-460.0,0.00021643,2]
[374566009,1753357849221,-460.0,0.00021643,2]
[374566010,1753357849231,-485.64,0.00021643,2]
[374566011,1753357849241,-460.0,0.00021643,2]